bitfinex-derivatives/quotes_ETHF0:USTF0_20250905
["timestamp","ask_amount","ask_price","bid_price","bid_amount"]
[1757100814063,1.3219,4318.0,4317.8,3.2078]
[1757100814064,0.4748,4317.9,4317.8,3.2078]
[1757100814259,1.1343,4317.9,4317.8,1.1384]
[1757100814560,1.1343,4317.9,4317.8,0.6633]
[1757100815162,1.1343,4317.9,4317.8,0.3178]
[1757100815858,1.1343,4317.9,4317.7,0.24]
[1757100816063,4.3421,4317.9,4317.7,0.24]
[1757100816359,1.3219,4317.5,4317.4,0.5578]
[1757100817356,0.7956,4316.9,4316.8,1.1384]
[1757100817555,0.4748,4317.4,4316.8,1.1384]
[1757100817861,1.1343,4317.4,4317.3,0.3178]
[1757100818061,1.1343,4317.4,4316.9,0.7151]
[1757100818257,0.8471,4317.0,4316.9,0.5578]
[1757100818566,1.1343,4317.0,4316.9,1.3784]
[1757100820362,0.8471,4317.0,4316.7,0.24]
[1757100820572,0.8471,4317.0,4316.3,3.6829]
[1757100820760,1.3219,4316.5,4316.4,0.5578]
[1757100820960,3.2078,4317.3,4317.2,1.1384]
[1757100821161,0.4748,4317.8,4317.2,0.6633]
[1757100821355,0.8135,4317.4,4317.3,1.1384]
[1757100821557,0.4748,4318.5,4318.2,0.4751]
[1757100821756,0.7956,4318.5,4318.4,1.1384]
[1757100821959,0.7956,4318.5,4318.4,1.3784]
[1757100822266,0.6624,4319.0,4318.4,1.3784]
[1757100822764,1.1343,4318.5,4318.4,1.3784]
[1757100822965,0.3208,4318.5,4318.4,1.3784]
[1757100823870,0.1876,4319.0,4318.4,0.9033]
[1757100824071,1.1343,4318.9,4318.8,0.3178]
[1757100824364,1.1343,4318.9,4318.8,1.1384]
[1757100824569,1.1343,4318.9,4318.8,0.6633]
[1757100824760,1.1343,4318.9,4318.8,0.3178]
[1757100825465,0.4748,4318.8,4318.6,0.212]
[1757100825665,3.8673,4318.7,4318.6,0.212]
[1757100825969,4.3421,4318.7,4318.6,0.212]
[1757100826669,8.3421,4318.7,4318.6,0.212]
[1757100827070,8.3421,4318.7,4318.2,0.6271]
[1757100827370,1.1343,4318.3,4318.2,0.9449]
[1757100828071,1.1343,4318.3,4318.2,1.2904]
[1757100828370,0.8104,4318.7,4318.6,0.6374]
[1757100828570,0.8104,4318.7,4318.6,1.1024]
[1757100829864,1.1257,4318.7,4318.6,1.1024]
[1757100830464,0.4855,4318.7,4318.6,1.1024]
[1757100830866,0.8104,4318.7,4318.6,1.1024]
[1757100832175,3.2078,4318.8,4318.6,1.1024]
[1757100832176,3.2078,4318.8,4318.7,0.465]
[1757100832374,0.4855,4319.0,4318.7,1.1024]
[1757100832579,0.3249,4318.9,4318.8,0.24]
[1757100832772,0.3249,4318.9,4318.8,0.8774]
[1757100833171,0.8104,4318.9,4318.8,1.3424]
[1757100833669,1.1257,4318.9,4318.8,1.3424]
[1757100834883,0.3249,4318.9,4318.8,1.3424]
[1757100835274,1.1257,4318.9,4318.8,1.3424]
[1757100836875,1.1257,4318.9,4318.8,0.24]
[1757100837478,1.1257,4318.9,4318.0,3.8568]
[1757100837779,0.4855,4318.3,4318.1,0.24]
[1757100837979,0.4855,4318.3,4318.2,1.1024]
[1757100837980,0.8104,4318.3,4318.2,1.1024]
[1757100838779,3.2078,4318.5,4318.2,1.1024]
[1757100839079,0.8104,4318.6,4318.5,1.1024]
[1757100840174,0.4855,4318.9,4318.5,0.8214]
[1757100840477,1.1257,4318.9,4318.8,0.6374]
[1757100840776,3.2078,4319.1,4319.0,0.184]
[1757100840976,0.4855,4319.4,4319.0,0.8214]
[1757100841177,3.2078,4319.6,4319.3,0.6374]
[1757100841483,4.0182,4319.6,4319.5,1.1024]
[1757100841682,0.8104,4319.6,4319.5,1.1024]
[1757100841979,3.2078,4320.6,4320.2,0.465]
[1757100842185,1.1257,4320.9,4320.8,0.3283]
[1757100842377,1.1257,4320.9,4320.5,0.465]
[1757100842682,0.6402,4320.9,4320.8,1.1024]
[1757100843275,1.1257,4320.9,4320.8,1.1024]
[1757100843683,0.3249,4320.9,4320.8,1.1024]
[1757100843876,1.1257,4320.9,4320.8,1.1024]
[1757100845680,1.1257,4320.9,4320.8,0.5683]
[1757100845882,1.1257,4320.9,4320.8,1.3424]
[1757100846077,1.1257,4320.9,4320.8,0.8774]
[1757100846383,1.1257,4320.9,4320.0,0.184]
[1757100846384,1.3215,4320.0,4319.9,0.3283]
[1757100847691,1.3215,4320.0,4319.9,0.5683]
[1757100848478,0.3249,4320.1,4320.0,0.6374]
[1757100848680,1.1257,4320.1,4320.0,1.3424]
[1757100849080,0.8104,4320.4,4320.3,0.6374]
[1757100849285,1.34396912,4320.4,4320.3,1.1024]
[1757100849481,1.1257,4320.4,4320.3,1.1024]
[1757100850588,1.34405153,4320.4,4320.3,1.1024]
[1757100850790,1.1257,4320.4,4320.3,1.1024]
[1757100850984,4.3335,4320.4,4320.3,0.6374]
[1757100851190,4.55183711,4320.4,4320.3,0.3283]
[1757100852290,1.34403711,4320.4,4320.2,0.24]
[1757100852493,1.1257,4320.4,4320.2,0.24]
[1757100852791,0.6402,4320.4,4320.2,0.24]
[1757100852991,1.1257,4320.3,4320.2,0.6374]
[1757100853190,0.6402,4320.3,4320.2,1.3424]
[1757100853395,3.2078,4320.5,4320.4,0.6374]
[1757100853596,3.2078,4320.5,4320.4,1.1024]
[1757100854197,4.0182,4320.5,4320.4,1.1024]
[1757100854600,0.1958,4321.0,4320.4,0.6374]
[1757100854790,0.836,4321.0,4320.9,0.3283]
[1757100854992,1.52639517,4321.0,4320.9,1.1024]
[1757100855192,1.52639517,4321.0,4320.5,0.465]
[1757100855394,1.3215,4321.0,4320.6,0.24]
[1757100855796,1.3215,4321.0,4320.9,0.6374]
[1757100857909,1.3215,4321.0,4320.9,0.3283]
[1757100860704,0.7897,4321.4,4321.3,1.1214]
[1757100860914,0.3327,4321.4,4321.3,1.1214]
[1757100861710,3.2078,4322.1,4321.5,0.1844]
[1757100861913,1.091,4322.0,4321.9,1.1214]
[1757100862106,1.47393688,4322.0,4321.9,1.1214]
[1757100862405,1.47393688,4322.0,4321.9,0.6366]
[1757100863004,1.2691,4322.0,4321.9,0.6366]
[1757100863414,1.2691,4322.0,4321.9,1.1214]
[1757100863712,1.091,4322.0,4321.9,1.1214]
[1757100865610,0.1958,4322.5,4322.0,0.1844]
[1757100865811,0.634,4322.5,4322.4,1.1214]
[1757100866006,0.8121,4323.0,4322.9,0.3253]
[1757100866308,1.2691,4323.0,4322.9,0.3253]
[1757100866512,0.3327,4322.5,4322.4,1.3614]
[1757100866714,0.7897,4322.5,4322.4,1.3614]
[1757100867907,3.2078,4322.9,4322.5,0.4848]
[1757100868101,0.3327,4322.6,4322.5,1.1214]
[1757100868303,1.091,4322.6,4322.5,1.1214]
[1757100871817,1.091,4322.6,4322.5,0.24]
[1757100872411,1.091,4322.6,4322.5,0.5653]
[1757100873019,1.091,4322.6,4322.5,1.3614]
[1757100874620,0.3327,4322.7,4322.6,0.3253]
[1757100874819,1.091,4322.7,4322.6,0.6366]
[1757100875019,1.091,4322.7,4322.6,0.24]
[1757100876117,1.091,4322.7,4322.6,0.5653]
[1757100876913,1.091,4322.7,4322.6,0.24]
[1757100877118,1.091,4322.7,4322.5,0.24]
[1757100879022,1.091,4322.7,4322.6,0.3253]
[1757100879406,1.091,4322.7,4322.6,1.1214]
[1757100880011,1.091,4322.7,4322.5,0.24]
[1757100881723,1.091,4322.7,4322.6,1.1214]
[1757100885324,1.091,4322.7,4322.6,0.6366]
[1757100886022,1.091,4322.7,4322.6,0.8766]
[1757100886324,1.091,4322.7,4322.6,1.3614]
[1757100888221,1.29564907,4322.7,4322.6,1.3614]
[1757100889624,0.53734907,4322.7,4322.6,1.3604]
[1757100889819,0.20464907,4322.7,4322.6,1.3536]
[1757100890212,0.51644907,4322.7,4322.6,1.3536]
[1757100890420,1.27394907,4322.7,4322.6,1.3536]
[1757100890627,1.27394907,4322.7,4322.6,1.1146]
[1757100890813,1.27394907,4322.7,4322.6,1.3536]
[1757100891519,0.20464907,4322.7,4322.6,1.3536]
[1757100892226,0.97384907,4322.7,4322.6,1.3536]
[1757100892720,1.27394907,4322.7,4322.6,1.3536]
[1757100895321,1.43344809,4322.7,4322.4,3.2078]
[1757100895530,0.6119,4322.3,4322.2,0.8035]
[1757100895831,0.20464907,4322.3,4322.2,1.3536]
[1757100896425,0.3118,4322.4,4322.3,1.1146]
[1757100896625,0.7692,4322.4,4322.3,1.1146]
[1757100897528,0.3118,4322.4,4322.3,1.1146]
[1757100897728,0.1815,4323.0,4322.3,0.6264]
[1757100897927,1.38611302,4322.9,4322.6,0.4882]
[1757100898129,1.0693,4322.9,4322.8,1.1146]
[1757100898327,1.68621587,4322.9,4322.8,0.3153]
[1757100899325,1.68621587,4322.9,4322.8,0.5543]
[1757100899825,1.68621587,4322.9,4322.8,0.239]
[1757100900326,1.0693,4322.0,4321.9,4.0113]
[1757100900624,1.2508,4322.0,4321.9,3.4468]
[1757100901020,4.2771,4322.9,4322.8,1.1146]
[1757100901221,0.3118,4322.9,4322.8,1.3536]
[1757100901526,1.0693,4323.4,4323.3,0.6264]
[1757100901825,1.0693,4322.8,4322.7,3.5231]
[1757100902127,1.0693,4322.8,4322.7,3.7621]
[1757100902328,1.0693,4322.8,4322.7,0.5543]
[1757100903430,1.0693,4322.8,4322.7,1.3536]
[1757100903933,1.68622428,4322.8,4322.7,0.8654]
[1757100904429,1.0693,4322.8,4322.7,1.3536]
[1757100905828,1.0693,4322.8,4322.7,1.1146]
[1757100906028,1.0693,4322.8,4322.7,1.3536]
[1757100906929,0.3118,4322.8,4322.7,1.3536]
[1757100907631,0.51222745,4322.8,4322.7,4.5614]
[1757100908333,0.96962745,4322.8,4322.7,4.5614]
[1757100908928,0.96962745,4322.8,4322.7,1.3536]
[1757100909125,1.26972745,4322.8,4322.7,1.3536]
[1757100909331,1.26972745,4322.8,4322.7,0.8654]
[1757100910226,1.26972745,4322.8,4322.7,0.5543]
[1757100910621,1.0693,4322.8,4322.7,0.3153]
[1757100910836,1.0693,4322.8,4322.7,0.5543]
[1757100911333,1.68620427,4322.8,4322.7,0.5543]
[1757100912532,1.68620427,4322.8,4322.7,1.3536]
[1757100912735,1.68620427,4322.8,4322.7,0.5543]
[1757100913236,1.68620427,4322.8,4322.7,0.3153]
[1757100913436,1.68620427,4322.8,4322.7,0.5543]
[1757100913631,0.3118,4322.3,4322.2,0.8035]
[1757100913839,1.0693,4322.3,4322.2,0.8035]
[1757100914138,1.0693,4322.3,4322.2,0.5543]
[1757100914332,1.0693,4322.3,4322.2,1.3536]
[1757100914733,1.27665789,4322.3,4322.2,1.3536]
[1757100915034,1.27665789,4322.3,4322.2,1.1146]
[1757100915230,1.27665789,4322.3,4322.2,1.3536]
[1757100916439,0.20735789,4322.3,4322.2,1.3536]
[1757100917641,0.4574,4322.6,4322.2,1.3536]
[1757100917833,0.19223989,4322.5,4322.2,0.8654]
[1757100918133,0.4574,4322.9,4322.4,0.4882]
[1757100918340,0.7438,4322.9,4322.8,1.0474]
[1757100918539,0.93602012,4322.9,4322.8,1.2864]
[1757100918741,1.55264203,4322.9,4322.8,1.2864]
[1757100919140,1.86474203,4322.9,4322.8,1.2864]
[1757100919636,1.24812012,4322.9,4322.8,1.2864]
[1757100920652,1.86474376,4322.9,4322.8,1.2864]
[1757100920847,1.24812408,4322.9,4322.8,1.2864]
[1757100922438,0.19222408,4322.9,4322.8,1.2864]
[1757100923144,3.2078,4323.7,4323.2,0.6106]
[1757100923444,1.56502513,4323.6,4323.5,1.0474]
[1757100923640,1.09502513,4323.6,4323.5,1.4686]
[1757100924138,0.47851805,4323.6,4323.5,1.4686]
[1757100924338,0.94851805,4323.6,4323.5,1.4686]
[1757100925241,0.47,4323.2,4323.1,3.2078]
[1757100925446,0.7564,4322.8,4322.7,1.0474]
[1757100925647,0.7564,4322.8,4322.7,1.2864]
[1757100925849,0.2864,4322.8,4322.7,1.2864]
[1757100926047,0.47,4323.4,4322.8,0.4368]
[1757100926248,0.47831932,4323.3,4323.2,0.3059]
[1757100926446,1.26041932,4323.3,4323.2,0.5449]
[1757100927249,1.26041932,4323.3,4323.2,1.2864]
[1757100928948,1.0685,4323.3,4323.2,1.2864]
[1757100929854,1.0685,4323.3,4323.2,0.8496]
[1757100930449,1.0685,4323.3,4323.2,1.2864]
[1757100933052,0.47,4323.6,4323.2,0.8496]
[1757100933254,0.7564,4323.6,4323.5,1.0474]
[1757100933445,1.0685,4323.6,4323.5,1.0474]
[1757100934250,1.0685,4323.6,4323.5,0.6106]
[1757100934451,1.0685,4323.6,4323.5,0.3059]
[1757100935353,0.5985,4323.3,4323.2,0.5449]
[1757100935547,0.5985,4323.3,4323.2,0.239]
[1757100936259,1.0685,4323.3,4323.2,0.239]
[1757100937654,1.0685,4323.3,4323.2,0.5449]
[1757100939360,1.0685,4323.3,4323.2,0.239]
[1757100939560,0.5985,4323.3,4322.7,0.4368]
[1757100939762,0.5985,4322.9,4322.8,0.9817]
[1757100939961,1.0685,4322.9,4322.8,1.2864]
[1757100941552,0.7564,4322.9,4322.8,1.2864]
[1757100942464,0.2864,4322.9,4322.8,1.2864]
[1757100942654,0.1721,4323.5,4322.9,0.4368]
[1757100942860,0.7706,4323.5,4322.9,0.4368]
[1757100943266,1.2406,4323.0,4322.9,1.0474]
[1757100943761,1.2406,4323.0,4322.9,0.3059]
[1757100943960,0.7706,4323.0,4322.9,0.239]
[1757100944561,1.2406,4323.0,4322.9,0.239]
[1757100944957,0.47,4322.9,4322.6,3.2078]
[1757100945162,0.5985,4322.0,4321.9,3.8184]
[1757100945462,1.0685,4322.0,4321.9,4.4942]
[1757100947471,0.7564,4322.0,4321.9,4.4942]
[1757100949362,0.4533,4322.3,4321.9,4.4942]
[1757100949565,0.7518,4322.3,4322.2,0.6047]
[1757100949772,0.7518,4322.9,4322.8,0.6047]
[1757100950071,0.7518,4322.9,4322.8,1.2962]
[1757100951366,0.2985,4322.9,4322.8,1.2962]
[1757100951771,0.6033,4323.3,4323.2,0.3002]
[1757100951966,1.0566,4323.3,4323.2,0.5392]
[1757100952275,1.67181921,4323.3,4323.2,1.2962]
[1757100952572,3.2078,4323.9,4323.2,1.2962]
[1757100952573,0.4533,4323.6,4323.2,1.2962]
[1757100952769,0.6152124,4323.5,4323.4,0.6047]
[1757100952968,0.6152124,4323.5,4323.4,1.0572]
[1757100953770,0.6348,4324.0,4323.4,1.0572]
[1757100954067,1.67175879,4323.9,4323.8,1.0572]
[1757100954267,1.0566,4323.9,4323.8,1.2962]
[1757100955577,1.0566,4323.9,4323.8,0.8437]
[1757100955785,0.7518,4323.9,4323.8,1.2962]
[1757100955971,1.0566,4324.8,4324.7,1.0572]
[1757100956172,1.86515754,4324.8,4324.7,1.2962]
[1757100956372,1.25011795,4324.8,4324.7,1.2962]
[1757100956874,1.0566,4324.8,4324.7,1.2962]
[1757100958867,3.2078,4325.6,4324.7,0.8437]
[1757100959175,1.0566,4324.9,4324.8,1.0572]
[1757100959376,1.0566,4324.9,4324.8,0.6047]
[1757100959572,1.0566,4324.9,4324.8,0.3002]
[1757100959772,1.0566,4324.9,4324.8,0.5392]
[1757100960282,1.0566,4324.9,4324.8,0.239]
[1757100963076,0.7518,4324.1,4324.0,4.1401]
[1757100963282,1.0566,4324.1,4324.0,4.6836]
[1757100963580,1.0566,4324.1,4324.0,4.265]
[1757100963778,1.0566,4324.1,4324.0,3.508]
[1757100963974,0.2985,4323.5,4323.4,4.265]
[1757100964283,0.7518,4323.5,4323.4,4.504]
[1757100966374,0.2985,4323.5,4323.4,4.504]
[1757100969581,1.2435,4324.0,4323.9,0.7527]
[1757100969775,1.2435,4324.0,4323.9,1.2962]
[1757100972076,3.2078,4324.6,4324.4,0.6047]
[1757100972378,1.0566,4324.9,4324.8,1.0572]
[1757100972589,0.4533,4325.2,4324.8,1.2962]
[1757100972779,0.7518,4325.2,4325.1,0.6047]
[1757100972973,0.7518,4325.2,4325.1,1.2962]
[1757100974477,1.0566,4325.2,4325.1,1.2962]
[1757100975582,1.0566,4325.2,4325.1,0.8437]
[1757100975784,1.0566,4325.2,4325.1,1.2962]
[1757100981787,0.7518,4325.2,4325.1,1.2962]
[1757100982188,0.4586,4325.5,4325.1,1.2962]
[1757100982387,0.94738283,4325.4,4325.3,1.0385]
[1757100983490,0.94743106,4325.4,4325.3,1.0385]
[1757100983995,0.48883106,4325.4,4325.3,1.0385]
[1757100984485,0.94743106,4325.4,4325.3,1.0385]
[1757100986287,0.19343106,4325.4,4325.3,1.0385]
[1757100987086,0.94743106,4325.4,4325.3,1.0385]
[1757100987590,1.23203106,4325.4,4325.3,1.0385]
[1757100988290,1.23203106,4325.4,4325.1,0.239]
[1757100988488,1.0386,4325.2,4325.1,0.9901]
[1757100988690,1.0386,4325.2,4325.1,0.2888]
[1757100988891,1.0386,4325.2,4325.1,0.5268]
[1757100989092,1.0386,4325.2,4325.1,0.9891]
[1757100989392,1.0386,4325.2,4325.1,1.2765]
[1757100990988,0.754,4325.5,4325.4,1.0385]
[1757100991296,0.94742906,4325.5,4325.4,1.2765]
[1757100992891,1.23202906,4325.5,4325.4,1.2765]
[1757100997102,1.40362906,4325.5,4325.4,1.2765]
[1757100997702,1.2321472,4325.5,4325.4,1.2765]
[1757100999205,1.0386,4325.5,4325.4,1.2765]
[1757100999499,0.1869,4326.0,4325.5,0.1677]
[1757100999704,0.2954,4325.9,4325.8,0.5762]
[1757100999905,0.2954,4325.9,4325.8,1.2765]
[1757101000094,0.4586,4326.1,4325.8,0.8142]
[1757101000298,0.4586,4326.4,4326.1,0.4623]
[1757101000503,0.754,4326.4,4326.3,1.0385]
[1757101001105,1.36850102,4326.4,4326.3,1.0385]
[1757101001403,0.1869,4327.0,4326.4,0.4623]
[1757101001602,0.1869,4327.0,4326.2,0.238]
[1757101001603,1.2255,4327.0,4326.9,0.2888]
[1757101001798,1.83991299,4327.0,4326.9,0.2888]
[1757101002602,1.83991299,4327.0,4326.9,1.0385]
[1757101003206,1.83991299,4327.0,4326.9,0.5762]
[1757101003405,1.83991299,4327.0,4326.9,0.2888]
[1757101003605,1.2255,4327.0,4326.9,0.2888]
[1757101003811,1.2255,4327.0,4326.8,0.238]
[1757101007210,1.24797216,4326.9,4326.8,0.238]
[1757101007519,1.24797216,4326.9,4326.8,0.5268]
[1757101009416,1.24797216,4326.9,4326.8,0.238]
[1757101011115,1.24797216,4326.9,4326.8,0.5204]
[1757101011319,1.24797216,4326.9,4326.8,0.9442]
[1757101012115,1.26171572,4326.9,4326.8,0.9442]
[1757101013316,1.26171572,4326.9,4326.8,0.5204]
[1757101014407,1.2616762,4326.9,4326.8,0.5204]
[1757101016720,1.2616762,4326.9,4326.8,0.238]
[1757101017514,1.2616762,4326.9,4326.8,0.5204]
[1757101018824,1.2616762,4326.9,4326.8,1.2278]
[1757101019522,0.9770762,4326.9,4326.8,1.2278]
[1757101019821,0.2230762,4326.9,4326.8,1.2278]
[1757101020617,0.9532762,4326.9,4326.8,1.2278]
[1757101021017,0.2230762,4326.9,4326.8,1.2278]
[1757101021421,0.4444,4327.2,4326.8,1.2278]
[1757101021722,0.7302,4327.0,4326.9,0.9898]
[1757101021925,0.94223468,4327.0,4326.9,0.9898]
[1757101022324,0.21203468,4327.0,4326.9,0.9898]
[1757101022520,0.4444,4327.2,4327.0,0.4238]
[1757101022826,0.94226203,4327.1,4327.0,0.9898]
[1757101023923,0.21206203,4327.1,4327.0,1.161]
[1757101024112,0.03625209,4327.1,4327.0,9.01585]
[1757101024314,0.4444,4327.8,4327.7,0.566]
[1757101024522,0.4444,4328.4,4327.8,0.4238]
[1757101024823,0.7302,4327.9,4327.8,0.9898]
[1757101025017,1.34361691,4327.9,4327.8,0.9898]
[1757101025219,0.7302,4327.9,4327.8,0.9898]
[1757101025424,1.0106,4327.9,4327.8,0.9898]
[1757101029527,0.0106,4327.9,4327.8,0.9898]
[1757101029736,0.0263,4327.9,4327.8,0.9898]
[1757101031625,0.0263,4327.9,4327.8,1.2278]
[1757101032023,0.0263,4327.9,4327.8,0.4238]
[1757101032024,0.0361,4327.9,4327.8,0.4238]
[1757101032227,0.0412,4327.6,4327.5,0.595]
[1757101032426,3.249,4327.6,4327.5,0.595]
[1757101032635,7.43888,4327.6,4327.0,0.1712]
[1757101032826,0.0314,4327.1,4326.2,3.2078]
[1757101033028,0.0412,4327.0,4326.9,0.4238]
[1757101033227,3.249,4327.0,4326.9,0.4238]
[1757101033534,0.0314,4327.2,4327.1,0.4238]
[1757101033726,0.0412,4327.2,4327.1,0.4238]
[1757101034528,0.0314,4327.2,4327.1,0.4238]
[1757101034727,0.0314,4327.2,4327.1,0.7062]
[1757101035534,0.64920008,4327.2,4327.1,0.7062]
[1757101037931,0.64920008,4327.2,4327.1,0.9898]
[1757101038230,0.0314,4327.2,4327.1,0.9898]
[1757101040537,3.2218,4327.6,4327.5,0.8974]
[1757101040734,3.83966123,4327.6,4327.5,0.8974]
[1757101042232,3.84406123,4327.6,4327.5,0.6]
[1757101042442,3.84406123,4327.6,4327.5,0.4253]
[1757101042638,0.014,4327.1,4326.0,0.1677]
[1757101042936,0.5846,4326.1,4325.5,0.1747]
[1757101043133,0.8723,4325.6,4325.5,0.4721]
[1757101044243,0.5846,4325.6,4325.5,0.7551]
[1757101044447,0.2895,4325.6,4325.5,0.7551]
[1757101044941,0.8716,4325.6,4325.5,0.6]
[1757101045842,0.8716,4325.6,4325.5,0.8974]
[1757101046436,0.5846,4325.2,4325.0,0.1747]
[1757101046744,0.8716,4325.1,4324.5,0.1747]
[1757101046945,0.3575,4325.0,4324.0,0.1747]
[1757101047137,0.5846,4324.1,4324.0,1.1804]
[1757101049338,3.2078,4324.2,4324.1,0.4253]
[1757101049540,3.2078,4324.2,4324.1,1.0057]
[1757101051848,3.4973,4324.2,4324.1,1.0057]
[1757101052045,3.4973,4324.2,4323.6,0.4253]
[1757101052046,4.0794,4324.2,4323.6,0.4253]
[1757101052238,4.0794,4323.7,4323.6,0.4253]
[1757101052942,4.0794,4323.7,4323.6,0.7227]
[1757101053138,4.0794,4323.7,4323.6,1.0057]
[1757101053139,3.7924,4323.7,4323.6,1.0057]
[1757101057241,3.7924,4323.7,4323.6,0.7227]
[1757101057440,4.0794,4323.7,4323.6,0.4253]
[1757101057646,3.7924,4323.7,4323.6,0.7227]
[1757101058048,3.7924,4323.7,4323.6,1.0057]
[1757101058543,0.5846,4323.7,4323.6,1.0057]
[1757101058743,0.2895,4323.7,4323.6,1.0057]
[1757101063648,3.2078,4324.3,4323.7,0.4253]
[1757101063845,3.7343,4324.3,4324.2,1.0057]
[1757101064150,4.0294,4324.3,4324.2,1.0057]
[1757101064351,4.3164,4324.3,4324.2,0.7227]
[1757101064552,4.3164,4324.3,4324.2,0.4253]
[1757101065647,0.5846,4324.1,4324.0,0.1747]
[1757101065847,0.8716,4324.1,4324.0,0.1747]
[1757101066057,0.8716,4324.1,4323.5,0.1747]
[1757101066261,0.5846,4324.1,4323.6,0.4253]
[1757101066559,0.2895,4323.7,4323.6,1.0057]
[1757101069961,3.7318,4324.3,4323.7,0.4308]
[1757101070260,0.2833,4324.1,4324.0,1.159]
[1757101070454,0.89902677,4324.1,4324.0,1.159]
[1757101070857,1.19422677,4324.1,4324.0,1.159]
[1757101071662,1.46892677,4324.1,4324.0,0.4308]
[1757101072456,1.46892677,4324.1,4324.0,0.7087]
[1757101072655,1.46892677,4324.1,4324.0,0.875]
[1757101072854,1.19422677,4324.1,4324.0,1.159]
[1757101073752,5.46892677,4324.1,4323.6,0.4308]
[1757101073953,0.5785,4323.6,4323.5,0.4526]
[1757101074155,1.19422677,4323.6,4323.5,0.4526]
[1757101074357,1.19422677,4323.6,4323.5,0.7366]
[1757101074559,1.19422677,4323.6,4323.5,1.1674]
[1757101077758,4.67672677,4323.6,4323.5,1.1674]
[1757101079059,4.67672677,4323.6,4323.5,0.8834]
[1757101079261,5.91106659,4323.6,4323.5,0.8834]
[1757101080270,4.40202677,4323.6,4323.5,1.1674]
[1757101080662,5.63636659,4323.6,4323.5,1.1674]
[1757101081058,5.91106659,4323.6,4323.5,0.8834]
[1757101081263,5.92484308,4323.6,4323.5,0.8834]
[1757101081461,4.40202677,4323.6,4323.5,0.8834]
[1757101081661,5.65008529,4323.6,4323.5,1.1674]
[1757101082071,5.92478529,4323.6,4323.5,0.8834]
[1757101082272,4.67672677,4323.6,4323.5,0.4308]
[1757101082464,0.5785,4323.1,4323.0,0.6055]
[1757101082670,4.67672677,4323.1,4321.9,0.237]
[1757101082968,0.5785,4322.7,4322.6,0.7087]
[1757101083272,4.67672677,4322.7,4322.6,0.7087]
[1757101083567,4.67672677,4322.7,4322.6,0.4308]
[1757101083964,4.67672677,4322.7,4322.6,0.7087]
[1757101086271,4.91372677,4322.7,4322.6,0.4308]
[1757101086767,4.91372677,4322.7,4322.6,0.7087]
[1757101088267,4.91372677,4322.7,4322.6,0.4308]
[1757101088964,4.91372677,4322.7,4321.7,0.237]
[1757101089165,3.7863,4322.2,4322.1,0.9927]
[1757101089473,4.40202677,4322.2,4322.1,0.9927]
[1757101089772,4.67672677,4322.2,4322.1,0.7087]
[1757101090769,4.40202677,4322.2,4322.1,0.7087]
[1757101091868,4.67672677,4322.2,4322.1,0.4308]
[1757101093072,0.2747,4320.9,4320.0,0.5971]
[1757101093272,8.95489677,4322.2,4320.0,0.5971]
[1757101093273,3.2078,4320.5,4320.1,0.4308]
[1757101093575,4.0233,4320.5,4320.4,0.9927]
[1757101093777,4.40461901,4320.5,4320.4,0.9927]
[1757101093973,4.64161901,4320.5,4320.4,0.9927]
[1757101095080,4.91631901,4320.5,4320.4,0.4308]
[1757101095968,4.91631901,4320.5,4319.5,0.5971]
[1757101095969,0.5785,4319.6,4319.5,0.5971]
[1757101096172,0.5785,4319.6,4319.5,1.159]
[1757101096377,1.0902,4319.6,4319.5,0.4308]
[1757101097375,1.70704524,4319.6,4319.5,0.4308]
[1757101097571,1.70704524,4319.6,4318.9,0.9927]
[1757101097572,0.5785,4319.0,4318.9,0.9927]
[1757101097774,3.2078,4319.0,4318.9,0.9927]
[1757101097972,3.2078,4319.6,4319.5,1.159]
[1757101098173,3.4448,4320.1,4319.5,1.159]
[1757101098377,3.4448,4320.1,4320.0,1.1532]
[1757101098568,4.0146,4320.1,4320.0,1.1532]
[1757101100174,3.7291,4320.1,4320.0,1.1532]
[1757101100476,3.2078,4320.1,4320.0,1.1532]
[1757101100676,3.4448,4320.1,4320.0,1.1532]
[1757101101675,4.0146,4320.1,4320.0,0.8641]
[1757101101974,4.0146,4320.1,4320.0,1.1532]
[1757101102474,3.7776,4320.1,4320.0,1.1532]
[1757101103581,3.7776,4320.1,4320.0,0.9032]
[1757101103782,3.7776,4320.1,4320.0,1.076]
[1757101104580,3.2078,4320.1,4320.0,1.076]
[1757101106779,3.2078,4320.1,4320.0,5.076]
[1757101108487,3.8818,4320.6,4320.0,5.076]
[1757101108688,0.2843,4320.2,4320.1,0.9804]
[1757101109587,4.4516,4320.6,4320.5,0.8641]
[1757101109785,4.4516,4320.6,4320.5,1.1532]
[1757101110386,3.2078,4321.2,4321.1,0.9804]
[1757101110586,3.4921,4321.2,4321.1,0.9804]
[1757101111090,3.2078,4321.2,4321.1,0.9804]
[1757101111286,0.1373,4323.0,4321.7,0.9804]
[1757101111287,3.7291,4321.8,4321.7,0.9804]
[1757101111480,4.0146,4321.8,4321.7,0.9804]
[1757101111888,3.7776,4321.8,4321.7,0.9804]
[1757101112394,3.4921,4321.8,4321.7,0.9804]
[1757101113094,0.674,4322.2,4321.7,0.5622]
[1757101113402,0.674,4322.2,4321.5,0.1728]
[1757101113403,0.2843,4322.1,4322.0,1.1532]
[1757101115301,0.5698,4322.1,4322.0,1.1532]
[1757101115501,1.0068,4322.1,4322.0,1.1532]
[1757101116598,1.0068,4322.1,4322.0,0.9804]